bitfinex/quotes_ETHUSD_20220202
["timestamp","ask_amount","ask_price","bid_price","bid_amount"]
[1643812362083,6.96360877,2755.0,2753.8,3.9181]
[1643812362285,0.1814,2754.9,2754.2,0.00145634]
[1643812362883,0.1392,2754.8,2753.9,0.00145634]
[1643812363085,0.1392,2754.8,2754.4,0.86255843]
[1643812363086,0.1376,2754.8,2754.4,0.86255843]
[1643812363285,1.51281878,2755.0,2754.4,0.86255843]
[1643812363484,1.51281878,2755.0,2753.9,2.48285634]
[1643812363485,0.00451231,2754.5,2753.9,2.48285634]
[1643812363685,0.00451231,2754.5,2754.0,2.434]
[1643812363926,0.00451231,2754.5,2754.1,0.1814]
[1643812364127,0.01239515,2755.7,2754.3,0.09921]
[1643812364330,0.1814,2756.3,2754.4,1.00866668]
[1643812364527,23.41486045,2756.3,2756.1,0.20431565]
[1643812364728,20.51407046,2756.2,2755.4,0.434]
[1643812365325,20.51304159,2756.2,2755.4,0.434]
[1643812365526,20.51304159,2756.2,2755.5,0.00145634]
[1643812365732,6.05,2755.6,2755.5,0.00145634]
[1643812365930,6.95078999,2755.6,2755.5,0.00145634]
[1643812366127,6.95078999,2755.6,2755.0,0.00145634]
[1643812366128,8.46363184,2755.6,2755.0,0.00145634]
[1643812366329,20.69866046,2755.5,2755.0,0.00145634]
[1643812366528,0.01200744,2755.1,2755.0,0.00145634]
[1643812366729,0.01200744,2755.1,2754.7,0.1814]
[1643812366730,0.01200744,2755.1,2754.8,0.00145634]
[1643812367128,5.95078999,2754.9,2754.7,0.1814]
[1643812367326,1.5,2755.0,2754.7,0.1814]
[1643812367327,20.5213003,2754.8,2754.7,0.1814]
[1643812367786,20.53393325,2754.8,2754.7,0.1814]
[1643812367990,20.53393325,2754.8,2753.8,2.318]
[1643812367991,0.1814,2754.7,2753.8,2.318]
[1643812368188,6.3129707,2753.9,2753.8,2.32249492]
[1643812368391,0.9129707,2753.9,2753.8,1.16639492]
[1643812368588,0.01231405,2753.9,2753.8,1.16639492]
[1643812368989,20.53948209,2753.9,2753.8,1.16639492]
[1643812369189,20.53948209,2753.9,2753.8,1.1119]
[1643812369588,20.72088209,2753.9,2753.8,1.1119]
[1643812369789,20.72088209,2753.9,2752.5,0.81677189]
[1643812369995,41.05911572,2753.8,2752.8,0.1816]
[1643812370195,17.32728152,2753.7,2753.4,0.09921]
[1643812370395,17.32728152,2753.7,2752.7,2.2759]
[1643812370396,12.24046992,2753.7,2753.1,0.18084]
[1643812370592,0.00201799,2754.6,2753.2,6.2314]
[1643812370792,0.00201799,2754.6,2753.3,0.434]
[1643812370996,0.19034395,2754.3,2753.3,0.434]
[1643812371199,1.19034394,2754.3,2753.3,0.434]
[1643812371616,0.99999999,2754.3,2753.7,0.71819811]
[1643812372117,0.99999999,2754.3,2753.1,0.1814]
[1643812372518,0.1814,2754.5,2753.1,0.6154]
[1643812372519,0.148,2754.4,2753.1,0.6154]
[1643812372718,0.99999999,2754.8,2754.0,0.19636246]
[1643812372719,0.1814,2754.8,2754.0,0.19636246]
[1643812372917,0.3294,2754.9,2754.0,0.19636246]
[1643812373117,1.00448653,2754.6,2754.0,0.19636246]
[1643812373317,0.00448654,2754.6,2754.0,0.19636246]
[1643812373521,0.00448654,2754.6,2754.1,1.27094908]
[1643812373716,0.00448654,2754.6,2754.1,1.57094908]
[1643812373922,0.1416,2755.1,2754.1,1.87094908]
[1643812374122,0.3214,2755.4,2754.1,1.87094908]
[1643812374322,0.00202574,2754.6,2754.2,0.01693073]
[1643812374524,0.00202574,2754.6,2754.3,0.434]
[1643812374721,0.00202574,2754.6,2754.4,0.434]
[1643812374922,0.00202574,2754.6,2754.5,6.484]
[1643812375183,0.216,2756.4,2754.5,6.484]
[1643812375184,0.3206,2755.9,2754.5,7.084]
[1643812375376,0.01271646,2756.3,2754.6,0.1814]
[1643812375377,0.34291646,2756.3,2754.6,0.1814]
[1643812375580,0.01271646,2756.3,2754.6,0.1814]
[1643812375775,0.01271646,2756.3,2754.3,2.3]
[1643812375776,0.3302,2756.2,2754.7,0.434]
[1643812375977,0.99999999,2755.5,2755.3,0.19872317]
[1643812376181,0.99999999,2755.5,2754.4,0.1814]
[1643812376182,0.99999999,2755.5,2755.4,1.15127899]
[1643812376378,0.99999999,2755.5,2755.4,1.45127899]
[1643812376575,0.99999999,2755.5,2755.4,0.684]
[1643812376576,1.00202399,2755.5,2755.4,0.684]
[1643812376777,1.00202399,2755.5,2755.4,0.434]
[1643812377576,0.99999999,2755.5,2755.4,0.434]
[1643812377779,0.00449838,2755.6,2755.4,0.434]
[1643812377979,0.00449838,2755.6,2755.4,0.43540616]
[1643812378178,0.00449838,2755.6,2755.4,0.63244757]
[1643812378381,0.00449838,2755.6,2755.5,8.05]
[1643812378582,0.00449838,2755.6,2755.5,0.6154]
[1643812378833,0.99999999,2756.5,2755.5,0.434]
[1643812379034,0.19806168,2756.6,2755.5,0.434]
[1643812379035,0.00449829,2755.7,2755.5,0.434]
[1643812379241,0.00449829,2755.7,2755.6,0.00140616]
[1643812379836,0.00449829,2755.7,2755.5,0.434]
[1643812380136,0.99999999,2756.7,2755.9,0.80180046]
[1643812380137,0.1814,2756.7,2755.9,0.80180046]
[1643812380339,0.99999999,2756.6,2755.9,1.23580046]
[1643812380540,0.1814,2756.5,2755.9,1.53580046]
[1643812380736,0.99999999,2756.2,2755.9,1.53580046]
[1643812380937,0.1814,2756.5,2755.9,0.734]
[1643812381136,0.1814,2756.5,2754.8,0.1814]
[1643812381137,0.99999999,2756.0,2754.8,2.99126637]
[1643812381348,0.99999999,2756.0,2754.2,1.1331]
[1643812381349,0.01211526,2754.9,2754.2,1.1331]
[1643812381540,2.0,2755.9,2754.2,1.1331]
[1643812381541,2.99999999,2755.3,2754.2,1.1331]
[1643812381836,2.99999999,2755.3,2754.3,0.434]
[1643812381837,0.01222949,2755.2,2754.3,0.434]
[1643812382036,0.01222949,2755.2,2754.2,1.1331]
[1643812382037,0.01222949,2755.2,2754.7,0.26122748]
[1643812382437,0.01222949,2755.2,2754.6,0.76866776]
[1643812382438,0.99999999,2755.1,2754.6,0.76866776]
[1643812382678,0.99999999,2754.7,2754.2,1.1331]
[1643812382880,0.00449883,2755.1,2754.2,1.1331]
[1643812382881,0.01296392,2754.4,2754.2,1.1331]
[1643812383077,7.04999999,2754.3,2754.2,1.1331]
[1643812383282,7.04999999,2754.3,2753.8,0.004501]
[1643812383283,6.2314,2754.2,2753.8,0.004501]
[1643812383483,7.04999999,2753.9,2753.8,0.004501]
[1643812383685,7.04999999,2753.9,2753.8,0.0024812]
[1643812383686,10.30328875,2753.9,2753.8,0.0024812]
[1643812383884,4.25328875,2753.9,2753.8,0.0024812]
[1643812384083,4.25328875,2753.9,2753.8,8.12e-05]
[1643812384280,2.68728875,2753.9,2753.8,8.12e-05]
[1643812384578,2.68728875,2753.9,2752.5,2.3725]
[1643812384579,6.05,2753.5,2752.5,2.3725]
[1643812384779,0.1816,2753.4,2752.5,2.3725]
[1643812384977,0.99999999,2752.9,2752.5,2.3725]
[1643812385378,0.99999999,2752.9,2752.5,0.007]
[1643812385579,0.1816,2753.4,2752.5,0.007]
[1643812385793,0.23160642,2752.9,2752.5,0.007]
[1643812386180,0.00446931,2753.5,2752.8,0.00447049]
[1643812386627,0.99999999,2753.2,2752.8,0.00447049]
[1643812386827,0.00446931,2753.5,2752.8,0.00447049]
[1643812387030,7.04999999,2752.9,2752.8,7.049e-05]
[1643812387233,7.25819254,2752.9,2752.5,0.007]
[1643812387432,7.04999999,2752.6,2752.5,0.007]
[1643812387632,7.04999999,2752.6,2750.2,13.06996236]
[1643812387633,6.05,2752.5,2750.6,0.1816]
[1643812387833,6.05,2752.5,2750.3,2.0]
[1643812387834,0.434,2752.4,2750.3,2.0]
[1643812388033,1.43399999,2752.4,2750.3,2.0]
[1643812388231,0.01275181,2751.9,2751.3,0.25624487]
[1643812388433,0.1816,2752.5,2751.3,0.25624487]
[1643812388634,0.99999999,2751.7,2751.2,0.434]
[1643812388937,6.05,2751.2,2748.6,1.1295037]
[1643812389133,1.01292762,2750.1,2748.7,1.91447864]
[1643812389333,1.01292762,2750.1,2748.6,1.0795037]
[1643812389334,0.99999999,2750.0,2748.6,1.0795037]
[1643812389531,0.01292763,2750.1,2748.6,1.0795037]
[1643812389734,0.20429,2751.9,2748.9,0.1929028]
[1643812389735,2.1817,2750.8,2748.9,0.1929028]
[1643812389931,0.99999999,2750.4,2749.3,0.93729572]
[1643812390174,0.99999999,2750.4,2748.9,0.1929028]
[1643812390376,0.1507088,2750.9,2748.6,0.9295037]
[1643812390377,2.0,2750.3,2748.6,0.9295037]
[1643812390578,0.01274882,2749.6,2748.6,0.9295037]
[1643812390779,0.99999999,2748.7,2748.6,0.9295037]
[1643812391482,0.1819,2749.5,2748.6,0.9295037]
[1643812391873,0.434,2750.1,2748.6,0.9295037]
[1643812391874,0.1817,2749.7,2748.6,0.9295037]
[1643812392077,0.99999999,2748.8,2748.6,0.95990729]
[1643812392274,3.53851257,2748.7,2746.9,0.49981]
[1643812392477,3.18189999,2748.6,2746.9,0.06581]
[1643812392679,0.434,2748.6,2747.0,0.04433703]
[1643812392877,4.1,2748.0,2746.8,0.78162714]
[1643812393079,0.25217288,2748.4,2746.8,0.73162714]
[1643812393275,0.1819,2748.6,2746.8,0.91246714]
[1643812393478,0.01260956,2748.7,2746.9,2.434]
[1643812393679,0.99999999,2748.2,2746.9,0.434]
[1643812393928,2.95542852,2749.6,2747.0,2.3254]
[1643812393929,0.434,2749.0,2747.0,2.3254]
[1643812394235,0.1819,2748.9,2747.1,2.61484]
[1643812394431,0.99999999,2749.2,2747.2,0.01564766]
[1643812394629,0.434,2750.9,2747.2,0.01564766]
[1643812394630,0.1817,2750.4,2747.3,0.18084]
[1643812394828,1.71464,2751.3,2747.4,8.24308119]
[1643812394829,0.99999999,2749.2,2747.4,8.24308119]
[1643812395028,0.01286291,2750.2,2747.4,8.24308119]
[1643812395029,2.0,2749.1,2748.1,0.99999999]
[1643812395232,0.01286291,2750.2,2748.2,2.434]
[1643812395233,0.1817,2750.1,2748.2,2.434]
[1643812395430,0.1817,2750.1,2748.2,0.99999999]
[1643812395831,0.1817,2750.1,2748.3,0.434]
[1643812396029,0.15052054,2750.2,2748.4,0.99999999]
[1643812396230,0.15052054,2750.2,2748.5,0.00139973]
[1643812396433,0.01209318,2749.5,2748.5,0.00139973]
[1643812396634,0.01200121,2748.8,2748.5,0.00139973]
[1643812396838,0.01200121,2748.8,2747.9,0.00139973]
[1643812397031,0.01208575,2749.7,2747.9,0.00139973]
[1643812397234,0.01241774,2749.0,2747.9,0.00139973]
[1643812397431,0.1817,2749.6,2748.0,0.434]
[1643812397689,0.01208575,2749.7,2748.0,0.434]
[1643812397690,0.01208575,2749.7,2748.4,0.99999999]
[1643812397888,0.1817,2750.1,2748.5,2.63131004]
[1643812398092,0.1817,2750.1,2748.6,0.18223973]
[1643812398292,1.26903554,2750.8,2749.9,0.3]
[1643812398491,0.19470133,2751.4,2750.1,0.74848643]
[1643812398492,0.47110127,2751.4,2750.1,0.74848643]
[1643812398689,0.28930127,2751.4,2750.1,1.18248643]
[1643812398891,0.24581302,2750.9,2750.1,1.68774325]
[1643812399091,0.24581302,2750.9,2750.0,0.00139973]
[1643812399295,1.26838971,2750.8,2750.1,0.00139973]
[1643812399497,2.12229971,2750.8,2750.1,0.00139973]
[1643812399691,2.12229971,2750.8,2750.4,0.00443971]
[1643812399692,0.01241971,2750.8,2750.4,0.00443971]
[1643812400303,0.21386785,2750.7,2750.4,0.00443971]
[1643812400497,0.21386785,2750.7,2749.6,0.00139973]
[1643812400498,6.06262908,2750.5,2749.6,0.00139973]
[1643812400702,0.01298921,2750.0,2749.6,0.00139973]
[1643812400902,0.01298921,2750.0,2747.9,3.6496]
[1643812400903,6.06291907,2749.7,2747.9,3.6496]
[1643812401098,1.85391,2749.4,2749.0,0.00139916]
[1643812401340,0.2553734,2749.3,2749.0,0.00139916]
[1643812401531,6.06252766,2749.0,2747.5,0.1817]
[1643812401726,0.01218373,2748.1,2747.5,0.1817]
[1643812401924,0.1819,2748.0,2747.5,0.1817]
[1643812402326,0.1819,2748.0,2747.6,0.21034974]
[1643812402525,0.01218373,2748.1,2747.6,0.21034974]
[1643812402526,0.3251,2748.4,2747.6,0.21034974]
[1643812402726,0.6443,2748.8,2746.9,0.6159]
[1643812402929,0.6443,2748.8,2746.9,0.1819]
[1643812402930,1.0,2748.1,2746.9,0.1819]
[1643812403127,0.0126063,2747.6,2746.6,2.3837]
[1643812403326,0.1819,2747.5,2746.8,2.39701439]
[1643812403525,0.1819,2747.5,2746.8,1.59182714]
[1643812403728,2.0,2748.4,2746.8,1.59182714]
[1643812403937,0.1819,2748.6,2747.1,0.99999999]
[1643812404135,0.1819,2749.8,2747.9,0.01233893]
[1643812404334,0.1819,2749.8,2748.0,0.434]
[1643812404535,0.0120234,2750.6,2748.0,0.434]
[1643812404536,0.128646,2750.3,2749.0,0.85605484]
[1643812404839,0.20037204,2749.5,2748.2,2.19930388]
[1643812405078,0.01233399,2749.3,2748.2,0.01760388]
[1643812405380,0.01270466,2748.3,2747.1,3.10806139]
[1643812405576,0.01206324,2748.1,2747.4,0.69076723]
[1643812405877,7.76464,2749.1,2745.5,1.00176234]
[1643812405878,0.1819,2748.2,2747.1,0.434]
[1643812406075,0.13819997,2749.8,2747.2,0.434]
[1643812406076,0.19467717,2748.7,2747.2,0.434]
[1643812406276,0.01277717,2748.7,2747.3,2.0]
[1643812406476,0.01212457,2748.0,2747.1,0.1819]
[1643812406676,0.1819,2749.1,2747.1,0.1819]
[1643812406878,1.0,2748.5,2747.1,0.1819]
[1643812407080,0.3262,2747.4,2747.1,0.1819]
[1643812407277,1.3801,2747.4,2747.1,0.1819]
[1643812407481,1.0539,2747.4,2747.1,0.1819]
[1643812407680,5.31180586,2747.3,2746.8,0.73162714]
[1643812407877,1.06656386,2747.4,2746.8,0.73162714]
[1643812408077,0.182,2747.3,2746.8,0.73162714]
[1643812408478,0.01283111,2747.3,2746.8,0.73162714]
[1643812408677,0.01283111,2747.3,2745.9,0.84443365]
[1643812408678,0.2892,2746.9,2745.9,0.84443365]
[1643812408936,1.1512,2746.9,2746.0,0.00139567]
[1643812409136,1.1512,2746.9,2746.5,0.08427623]
[1643812409735,0.34266164,2746.8,2746.5,0.08427623]
[1643812409936,0.0819,2746.7,2746.5,0.08427623]
[1643812410140,0.182,2746.7,2745.7,0.1921912]
[1643812410335,0.35386164,2746.8,2745.7,0.1921912]
[1643812410336,0.1819,2746.8,2745.7,0.1921912]
[1643812410538,0.3298,2746.9,2746.4,0.76515053]
[1643812410737,0.3715,2747.6,2746.4,0.76515053]
[1643812410738,0.3587,2747.6,2746.4,0.76515053]
[1643812410935,0.1608,2747.5,2746.4,0.76515053]
[1643812411135,0.1584,2747.5,2745.8,1.2106]
[1643812411335,1.0,2747.1,2746.3,0.24367487]
[1643812411537,1.0,2747.1,2743.4,1.65560817]
[1643812411538,1.0,2746.4,2743.4,1.65560817]
[1643812411738,1.0,2746.0,2745.9,0.00139576]
[1643812411935,6.05,2745.9,2743.4,4.8794]
[1643812412134,8.2321,2745.9,2743.4,4.7294]
[1643812412336,0.01001657,2745.7,2744.0,0.1950155]
[1643812412586,0.1821,2745.7,2744.0,0.1950155]
[1643812412778,0.1821,2745.9,2744.0,0.1950155]
[1643812413175,0.1376788,2745.9,2744.0,0.1950155]
[1643812413379,0.23939869,2745.8,2745.0,0.92366156]
[1643812413580,2.1821,2746.8,2745.0,0.92366156]
[1643812413779,0.1821,2746.8,2744.1,1.6351147]
[1643812413984,0.1821,2746.8,2742.6,2.90758025]
[1643812413985,1.0,2744.4,2742.6,2.90758025]
[1643812414186,1.0,2743.1,2742.0,2.255]
[1643812414384,2.79823,2743.0,2740.9,1.09452301]
[1643812414582,2.79823,2743.0,2741.0,0.49433]
[1643812414583,5.42,2742.5,2741.0,0.49433]
[1643812414786,0.59499381,2742.4,2741.6,0.26735835]
[1643812414981,0.6162,2742.4,2741.6,0.26735835]
[1643812415183,0.01295182,2741.7,2741.6,0.26735835]
[1643812415386,0.434,2741.9,2741.4,0.1822]
[1643812415584,0.434,2741.9,2740.4,0.1822]
[1643812415585,1.0,2741.5,2740.4,0.1822]
[1643812415785,1.0,2741.5,2739.9,0.1824]
[1643812415786,2.434,2741.4,2739.9,0.1824]
[1643812415982,0.01292309,2740.8,2739.8,0.00139529]
[1643812416183,0.36443,2740.7,2739.8,0.00139529]
[1643812416424,0.36443,2740.7,2740.1,0.19342069]
[1643812416628,0.18203,2740.7,2740.1,0.19342069]
[1643812416827,0.13203,2740.7,2740.1,0.19342069]
[1643812417025,0.01292309,2740.8,2740.1,0.19342069]
[1643812417026,2.1824,2741.2,2740.1,0.19342069]
[1643812417225,0.1824,2741.3,2740.1,0.19481598]
[1643812417424,3.0,2741.4,2740.1,0.00139529]
[1643812417626,0.00179028,2742.0,2740.3,3.05]
[1643812417828,0.1824,2741.9,2740.4,2.0]
[1643812418032,0.1824,2741.9,2740.5,0.1324]
[1643812418226,0.00179028,2742.0,2740.5,2.1324]
[1643812418425,0.00179028,2742.0,2740.6,0.00139529]
[1643812418625,0.22104608,2742.4,2741.8,0.71425288]
[1643812418827,0.22104608,2742.4,2740.6,0.00139529]
[1643812418828,0.0039753,2742.0,2741.1,0.00397664]
[1643812419029,0.0039753,2742.0,2741.6,0.00139529]
[1643812419630,0.0039753,2742.0,2741.1,0.00397664]
[1643812419831,0.33276543,2742.9,2740.9,2.0]
[1643812420079,0.128646,2744.1,2741.7,0.00435193]
[1643812420080,0.00435134,2742.0,2741.7,0.00435193]
[1643812420475,0.22339766,2741.9,2741.7,0.00435193]
[1643812421072,0.22339766,2741.9,2741.2,0.00139529]
[1643812422773,1.05929766,2741.9,2741.2,0.00139529]
[1643812422973,1.05929766,2741.9,2740.5,0.00139529]
[1643812422974,1.06635346,2741.9,2740.5,0.00139529]
[1643812423181,2.0,2741.8,2740.5,0.00139529]
[1643812423385,1.1824,2742.3,2740.5,0.00139529]
[1643812423386,0.01207243,2742.5,2741.7,0.99999999]
[1643812423579,1.26903554,2742.7,2741.7,0.99999999]
[1643812423580,0.0043454,2742.0,2741.8,0.99999999]
[1643812423829,0.0043454,2742.0,2741.7,0.00139529]
[1643812424233,0.0043454,2742.0,2741.2,0.00139529]
[1643812424435,0.2620581,2741.7,2741.2,1.00139528]
[1643812424635,0.2620581,2741.7,2741.2,0.00139529]
[1643812424833,0.01214742,2742.3,2740.6,0.00139529]
[1643812425037,1.47332554,2743.2,2742.0,0.99999999]
[1643812425038,0.1822,2742.9,2742.0,0.99999999]
[1643812425236,1.48618277,2743.2,2740.9,0.01237153]
[1643812425237,1.48618277,2743.2,2742.1,2.0]
[1643812425238,1.45562,2742.8,2742.1,2.0]
[1643812425435,1.45562,2742.8,2741.6,0.18208]
[1643812425436,0.67172,2742.8,2742.7,0.99999999]
[1643812425637,0.1424,2743.7,2742.7,0.99999999]
[1643812425840,0.1424,2743.7,2741.9,2.0]
[1643812425841,0.1822,2743.9,2742.6,0.99999999]
[1643812426036,0.01237009,2743.3,2742.0,0.30139529]
[1643812426234,0.0120451,2743.0,2742.0,0.30139529]
[1643812426634,0.0120451,2743.0,2742.1,0.00139529]
[1643812426836,0.24682011,2742.4,2742.2,0.99999999]
[1643812427036,0.1822,2742.9,2742.2,0.99999999]
[1643812427233,0.152,2743.0,2742.2,0.99999999]
[1643812427234,0.00217034,2742.7,2742.2,0.99999999]
[1643812427669,0.00217034,2742.7,2742.0,0.3]
[1643812427871,0.00217034,2742.7,2742.6,0.99999999]
[1643812428071,0.00217034,2742.7,2742.6,1.52483749]
[1643812428272,2.85391,2744.0,2742.6,1.52483749]
[1643812428273,1.65003033,2743.8,2742.6,1.70703749]
[1643812428473,0.00434894,2742.8,2742.6,0.7070375]
[1643812428669,0.00434894,2742.8,2742.7,1.78327611]
[1643812429186,0.1822,2744.8,2742.9,6.05811294]
[1643812429377,0.3318,2745.0,2744.0,0.99999999]
[1643812429575,0.01212159,2745.4,2743.2,0.01279531]
[1643812429576,0.1408,2744.7,2743.2,0.01279531]
[1643812429777,0.3382,2744.9,2744.3,0.99999999]
[1643812429974,0.3382,2744.9,2744.0,0.93670555]
[1643812429975,0.3398,2745.0,2744.0,0.99999999]
[1643812430178,0.3398,2745.0,2743.2,2.18359529]
[1643812430179,0.3277,2744.8,2743.6,0.26432461]
[1643812430376,0.27639994,2745.3,2744.2,0.99999999]
[1643812430377,0.335,2744.9,2744.2,0.99999999]
[1643812430577,2.3477,2745.2,2744.2,0.99999999]
[1643812430780,0.1552,2745.1,2743.7,0.00139529]
[1643812431083,0.01237383,2744.7,2743.7,0.00139529]
[1643812431323,0.1822,2744.6,2743.3,0.00139529]
[1643812431925,0.01248644,2744.1,2743.1,0.70892448]
[1643812432125,1.0313503,2744.1,2743.1,0.70892448]
[1643812432324,0.1822,2744.0,2743.1,0.00139529]
[1643812432526,0.351,2744.0,2743.2,0.00139529]
[1643812432726,0.1856,2743.9,2743.2,0.00139529]
[1643812432937,0.1856,2743.9,2742.9,0.1821]
[1643812432938,0.01268086,2743.5,2741.2,2.4233]
[1643812433138,0.99999999,2742.1,2738.2,5.01876931]
[1643812433332,0.94111134,2739.9,2738.5,0.7967201]
[1643812433555,0.94111134,2739.9,2738.0,0.53778666]
[1643812433556,0.94111134,2739.9,2738.3,0.04945284]
[1643812433829,0.654,2738.9,2737.0,18.05896136]
[1643812434042,1.18224999,2738.8,2738.1,0.04126613]
[1643812434229,8.95289169,2734.0,2732.8,9.17990304]
[1643812434433,8.95289169,2734.0,2731.6,0.1598]
[1643812434434,0.63367735,2734.0,2733.8,5.0]
[1643812434632,0.2079,2735.2,2733.8,4.82797184]
[1643812434827,0.2079,2735.2,2733.2,0.01223529]
[1643812434828,0.4095,2735.1,2733.2,0.01223529]
[1643812435074,2.9,2735.0,2733.3,0.00131832]
[1643812435276,0.225,2734.4,2733.0,0.75451017]
[1643812435472,0.175,2734.4,2732.6,2.99828188]
[1643812435674,7.27,2733.4,2730.6,5.0]
[1643812435875,0.99999999,2732.8,2732.4,0.00132001]
[1643812436177,0.99999999,2732.8,2730.6,5.0]
[1643812436178,0.60457725,2732.7,2731.1,0.23427]
[1643812436378,7.27,2731.7,2731.1,0.23427]
[1643812436678,7.27,2731.7,2731.2,0.01234347]
[1643812436882,0.434,2732.4,2731.2,0.01234347]
[1643812437173,0.01207671,2733.1,2730.7,0.00132023]
[1643812437373,0.17057725,2734.2,2730.7,0.00132023]
[1643812437573,1.0,2735.2,2730.5,0.01218377]
[1643812437574,0.041266,2735.5,2730.9,0.00803746]
[1643812437873,0.041266,2735.5,2731.1,0.99999999]
[1643812437874,0.36462424,2735.4,2731.1,0.99999999]
[1643812438074,0.01270356,2733.9,2731.8,1.94354]
[1643812438279,0.01276374,2734.4,2731.9,2.24771184]
[1643812438472,0.18721948,2735.4,2732.0,2.0]
[1643812438473,0.434,2734.3,2732.0,2.0]
[1643812438675,0.434,2734.3,2733.7,0.75674038]
[1643812438939,0.434,2734.3,2732.0,0.18286]
[1643812438940,0.1829,2735.2,2733.6,0.18286]
[1643812439134,0.00542524,2735.4,2733.7,0.2166937]
[1643812439135,0.01238186,2734.5,2733.7,0.2166937]
[1643812439334,0.0613471,2735.8,2735.7,0.20283215]
[1643812439536,0.0613471,2735.8,2734.1,0.18286]
[1643812439537,0.01200668,2735.2,2734.1,0.18286]
[1643812439736,0.01200668,2735.2,2734.3,0.78911574]
[1643812439933,0.0125597,2735.2,2734.3,0.78911574]
[1643812440134,0.0125597,2735.2,2734.4,0.00132023]
[1643812440333,0.0125597,2735.2,2734.4,0.18418023]
[1643812440538,0.01261637,2734.9,2734.5,0.24571469]
[1643812440743,0.1827,2736.1,2734.8,6.05]
[1643812440939,0.18283,2736.7,2736.0,0.91189124]
[1643812441135,0.1827,2737.8,2736.0,0.91189124]
[1643812441136,0.18283,2737.7,2736.1,0.23305208]
[1643812441335,0.18283,2737.7,2735.9,0.08001377]
[1643812441336,0.1826,2737.6,2735.9,0.08001377]
[1643812441539,0.34781389,2736.3,2735.8,0.08001377]
[1643812441735,0.34781389,2736.3,2734.4,0.00132023]
[1643812441736,0.01235683,2735.9,2734.4,0.00132023]
[1643812441937,0.01259462,2735.1,2734.8,0.06483731]
[1643812442133,1.0607,2735.1,2734.8,3.731e-05]
[1643812442333,0.13819997,2735.6,2734.8,4.23e-05]
[1643812442334,6.23283,2734.9,2734.8,4.23e-05]
[1643812442588,0.57219997,2735.6,2734.9,0.25830018]
[1643812442589,2.0,2735.5,2734.9,0.25830018]
[1643812442778,0.13819997,2735.6,2734.7,0.18265]
[1643812442979,0.1828,2736.3,2734.7,0.18397023]
[1643812442980,0.19522477,2736.3,2734.7,0.18397023]
[1643812443179,0.18278,2736.3,2734.8,0.1827]
[1643812443383,0.1827,2736.1,2734.7,0.00132023]
[1643812443679,0.0127762,2736.4,2735.9,0.26924462]
[1643812443885,0.1827,2736.1,2735.9,0.26924462]
[1643812444088,0.13819997,2736.5,2735.9,0.26924462]
[1643812444285,0.15025618,2736.5,2735.1,1.36534999]
[1643812444482,0.13819997,2736.5,2735.6,0.81520771]
[1643812444683,0.012677,2736.5,2735.6,0.81520771]
[1643812444883,0.012677,2736.5,2735.6,2.1152077]
[1643812445085,0.012677,2736.5,2735.6,1.11520771]
[1643812445285,0.012677,2736.5,2735.7,0.00132023]
[1643812445690,0.012677,2736.5,2735.7,0.18397023]
[1643812445884,0.012677,2736.5,2735.0,0.00132023]
[1643812446184,2.36548,2737.0,2735.8,0.93458069]
[1643812446432,2.36548,2737.0,2735.1,0.36535]
[1643812446433,0.0121033,2736.6,2735.1,0.1827]
[1643812446736,0.0121033,2736.6,2735.4,0.00132023]
[1643812446737,0.01258575,2736.0,2735.4,0.00132023]
[1643812446934,5.35,2735.8,2733.3,1.72085507]
[1643812447134,2.0,2735.7,2734.4,0.00131528]
[1643812447335,0.99999999,2735.0,2734.4,0.00131528]
[1643812447733,0.1827,2735.5,2733.0,0.0141868]
[1643812447734,2.18278,2734.9,2733.0,0.0141868]
[1643812447933,1.13568,2734.9,2733.1,0.1213]
[1643812448133,2.2774,2734.8,2733.2,0.00131528]
[1643812448335,0.2387,2734.0,2733.2,0.00131528]
[1643812448535,5.79999999,2733.3,2733.2,0.00131528]
[1643812448733,6.18819997,2733.3,2733.2,1.528e-05]
[1643812448941,0.32097997,2733.3,2731.7,0.1827]
[1643812449140,0.74787997,2733.4,2731.8,5.20131329]
[1643812449345,0.01223461,2733.8,2731.8,5.20131329]
[1643812449346,0.1829,2733.3,2731.9,2.1829]
[1643812449539,2.18287,2734.5,2733.2,0.21106791]
[1643812449540,0.1829,2733.6,2733.2,0.21106791]
[1643812449940,0.18287,2733.9,2732.1,0.1829]
[1643812450186,0.18287,2733.9,2732.2,0.00131329]
[1643812450380,0.1829,2733.8,2732.2,0.00131329]
[1643812450581,0.99999999,2733.1,2732.2,0.00131329]
[1643812450782,2.1829,2733.8,2732.2,0.00131329]
[1643812450783,1.2491,2733.2,2732.2,0.00131329]
[1643812451083,2.0,2735.2,2732.6,7.0]
[1643812451283,7.15171082,2736.5,2733.9,0.01296412]
[1643812451284,0.1829,2734.5,2733.9,0.01296412]
[1643812451482,0.01217934,2736.4,2735.2,0.1834265]
[1643812451483,0.1828,2735.5,2735.2,0.1834265]
[1643812451726,0.1828,2735.5,2734.2,2.01293248]
[1643812451887,0.800784,2736.0,2734.2,0.19694577]
[1643812452083,0.1827,2735.9,2734.2,0.01424577]
[1643812452482,0.1827,2735.9,2734.3,0.18293]
[1643812452681,0.1827,2736.3,2734.4,0.00131329]
[1643812452885,0.1827,2735.8,2734.5,0.61693]
[1643812453182,2.0,2736.9,2734.9,0.01258264]
[1643812453183,0.1827,2736.2,2734.9,0.01258264]
[1643812453381,0.89032345,2736.7,2735.7,0.69831754]
[1643812453582,0.89032345,2736.7,2735.1,2.0]
[1643812453825,0.89032345,2736.7,2735.6,0.24533384]
[1643812454028,0.1827,2736.6,2735.2,0.3]
[1643812454330,0.01261811,2737.1,2735.3,0.18293]
[1643812454331,0.00402212,2736.0,2735.3,0.18293]
[1643812454532,0.00402212,2736.0,2735.3,0.36694329]
[1643812454727,0.00402212,2736.0,2735.3,0.18424329]
[1643812454928,0.00402212,2736.0,2735.5,0.89625177]
[1643812455331,0.99999999,2736.8,2736.7,0.2419089]
[1643812455529,0.99999999,2736.8,2735.5,3.37918177]
[1643812455530,0.99999999,2736.8,2735.6,2.0]
[1643812455729,0.99999999,2736.8,2735.5,1.38049506]
[1643812455730,0.1827,2737.2,2735.5,1.38049506]
[1643812455929,0.1827,2736.9,2735.5,1.38049506]
[1643812456128,0.1827,2737.2,2736.0,0.9402924]